Cogmind - Beta 15 @@@ ROGUE MODE // 2025.06.14 @ 22:31:36 Player: Tenderz Result: Destroyed by Y-72 Warden with Quantum Rifle Performance ------------- Evolutions (6) 3000 Regions Visited (18) 3600 Robots Destroyed (254) 1270 Value Destroyed (9691) 9691 Prototype IDs (39) 780 Alien Tech Used (0) 0 Bonus (6870) 6870 TOTAL SCORE: 25211 Bonus ------- High Alert Combat Kills 206 Follower Combat Kills 1473 Entered DSFs 500 Network Hubs Disabled 400 Acquired ECA 300 Met Zhirov 300 Met Warlord at Base 500 MAIN.C Attacked Warlord 500 Warlord Defense Kills 2818 Built Enhanced Grunts 300 Met R17 at Cetus 500 Read Decrypted Archives 300 Friendly Fire -1227 Cogmind --------- Core Integrity 0/1150 Matter 42/300 Energy 100/100 System Corruption 10% Temperature Cool (9) Movement Core (1400) Ox27 Location -4/Factory Parts ------- > --- POWER (2) -------- (None) > --- PROPULSION (6) --- (None) > --- UTILITY (8) ------ Huge Storage Unit Terrain Scan Processor Improved Target Analyzer Improved Armor Integrity Analyzer Improved Weapon Cycler Advanced Transmission Jammer > --- WEAPON (3) ------- (None) > --- INVENTORY (25) --- Fission Core Micro Fission Core Armored Medium Treads Flexi-carbon Leg Advanced Power Amplifier Advanced Heat Sink Experimental Heat Sink Advanced Coolant Injector Matter Compressor (0) Advanced Sensor Array Advanced ECM Suite Advanced Shield Generator Improved Component Analysis Suite Dimensional Node Initializer Vortex Rail (11) KE Penetrator Precision Rocket Launcher Chain Missile Launcher Peak State ------------ > --- POWER ------------ Antimatter Reactor Antimatter Reactor > --- PROPULSION ------- Spiked Medium Treads Armored Medium Treads Centrium Heavy Treads Centrium Heavy Treads > --- UTILITY ---------- Experimental Heat Sink Huge Storage Unit Advanced Sensor Array Experimental Targeting Computer Improved Armor Integrity Analyzer Advanced Transmission Jammer Centrium Medium Armor Plating Improved Remote Force Field > --- WEAPON ----------- Advanced Variable Charge Gun KE Penetrator Improved KE Penetrator > --- INVENTORY -------- Neutrino Core Micro Fission Core Light Antimatter Reactor Armored Medium Treads Heavy Siege Treads Advanced Heat Sink Experimental Heat Sink Matter Compressor Improved Target Analyzer Improved Weapon Cycler Advanced ECM Suite Centrium Light Armor Plating Makeshift Ablative Armor Dimensional Node Initializer Phase Gun Advanced Variable Charge Gun Vortex Rail Vortex Rail KE Penetrator Enhanced Gauss Cannon Hardcell Cannon Precision Rocket Launcher Chain Missile Launcher [Rating: 148] Favorites ----------- Power Antimatter Reactor Engine Improved Ion Engine Power Core Micro Nuclear Core Reactor Antimatter Reactor Propulsion Centrium Heavy Treads Treads Centrium Heavy Treads Leg Improved VSS Leg Wheel Wheel Hover Unit Aerolev Unit Flight Unit Improved Flight Unit Utility High-capacity Storage Unit Device Advanced Sensor Array Storage High-capacity Storage Unit Processor Armor Integrity Analyzer Hackware Hacking Suite Protection Improved Medium Armor Plating Weapon Heavy Ion Cannon Energy Gun Advanced Variable Charge Gun Energy Cannon Heavy Ion Cannon Ballistic Gun Improved KE Penetrator Ballistic Cannon Light Cannon Launcher Precision Rocket Launcher Special Weapon Plasma Cutter Impact Weapon Power Maul Slashing Weapon Katana Build | -11 -10 -10 -9 -9 -8 -7 -7 -6 -6 -6 -6 -6 -5 -5 -5 -5 -4 -4 ------- Run | Yrd Mat Min Mat Sto Mat Fac DSF Fac Ext Cet Arc Hub Fac Upp Upp War Pro Fac Slots Evolved 12 | . . . 2 . 2 2 . 2 . . . . 2 . . . . 2 Power 1 | . . . . . . . . 1 . . . . . . . . . . Propulsion 4 | . . . 1 . . 1 . . . . . . . . . . . 2 Utility 6 | . . . . . 2 1 . 1 . . . . 2 . . . . . Weapon 1 | . . . 1 . . . . . . . . . . . . . . . Parts Attached 218 | 8 2 4 28 17 27 5 10 10 19 7 . 17 13 2 1 8 8 32 Power 27 | 1 . 2 2 1 3 . . 3 3 2 . 1 . . . 1 1 7 Engine 10 | 1 . 2 2 1 3 . . . 1 . . . . . . . . . Core 7 | . . . . . . . . 3 1 . . . . . . 1 . 2 Reactor 10 | . . . . . . . . . 1 2 . 1 . . . . 1 5 Propulsion 49 | 2 . . 11 10 4 1 2 1 3 2 . 1 . . . . . 12 Treads 39 | 2 . . 9 9 4 1 2 1 3 2 . 1 . . . . . 5 Leg 7 | . . . . . . . . . . . . . . . . . . 7 Wheel 1 | . . . 1 . . . . . . . . . . . . . . . Hover 1 | . . . 1 . . . . . . . . . . . . . . . Flight 1 | . . . . 1 . . . . . . . . . . . . . . Utility 80 | 2 1 1 4 1 11 2 3 4 9 1 . 13 10 1 . 3 4 10 Device 33 | 1 . 1 1 1 1 1 2 1 3 . . 10 5 . . 2 1 3 Storage 6 | 1 . . 1 . 2 . . . . . . . 2 . . . . . Processor 11 | . . . . . . 1 . . 2 . . 1 1 1 . . 1 4 Hackware 6 | . . . . . 1 . . 2 1 . . . . . . . 1 1 Protection 24 | . 1 . 2 . 7 . 1 1 3 1 . 2 2 . . 1 1 2 Artifact . | . . . . . . . . . . . . . . . . . . . Weapon 62 | 3 1 1 11 5 9 2 5 2 4 2 . 2 3 1 1 4 3 3 Energy Gun 12 | . . . 3 1 1 1 . . . 1 . 2 . . . 1 . 2 Energy Cannon 13 | . . . 2 1 2 . 1 1 3 1 . . . . . 1 1 . Ballistic Gun 12 | 3 . . . . 4 . . . . . . . 2 1 1 1 . . Ballistic Cannon 12 | . 1 . 4 . . . 3 1 1 . . . . . . 1 . 1 Launcher 6 | . . 1 . 2 . . 1 . . . . . . . . . 2 . Special Weapon 2 | . . . . 1 . . . . . . . . 1 . . . . . Impact Weapon 3 | . . . 1 . 1 1 . . . . . . . . . . . . Slashing Weapon 2 | . . . 1 . 1 . . . . . . . . . . . . . Piercing Weapon . | . . . . . . . . . . . . . . . . . . . Special Melee Weapon . | . . . . . . . . . . . . . . . . . . . Unidentified Prototypes 21 | . . . 3 5 . 1 . . . 3 . 3 1 . . 3 1 1 Corrupted Parts 9 | . . . . . 1 . . . 2 1 . 5 . . . . . . System Corruption 48 | . . . . . 3 . . . 8 5 . 32 . . . . . . Parts Lost 59 | . 2 . . 2 8 . 1 1 1 . . 6 . . . 3 . 35 Power 10 | . . . . . 1 . . . . . . 1 . . . 1 . 7 Propulsion 16 | . . . . . 3 . . 1 . . . . . . . . . 12 Utility 19 | . 1 . . . 3 . 1 . 1 . . 4 . . . 1 . 8 Weapon 14 | . 1 . . 2 1 . . . . . . 1 . . . 1 . 8 Highest Loss Streak 17 | . 1 . . 1 6 . 1 1 1 . . 5 . . . 2 . 17 To Critical Strikes . | . . . . . . . . . . . . . . . . . . . Average Backups 18 | 2 6 7 14 14 17 18 19 18 19 18 19 18 17 23 22 22 23 21 Power . | . . . . 1 1 1 1 . . 1 1 . . 1 1 . . 1 Propulsion 2 | 1 2 2 3 2 1 1 1 . . 1 2 2 2 2 2 3 4 1 Utility 8 | . 1 1 3 5 6 8 7 9 11 9 10 9 9 12 11 10 11 9 Weapon 7 | . 2 3 6 5 7 8 9 8 6 5 6 5 5 8 8 7 7 8 Tool/Special . | . . . . . . . . . . . . . . . . . . . Unused Backups 47 | . 1 1 3 5 7 3 . 3 4 2 . 3 1 . 1 3 . 10 Power 6 | . . . . . 2 . . . 1 . . 1 . . . . . 2 Propulsion 11 | . . . 2 2 2 . . 1 . 1 . 1 . . . 2 . . Utility 18 | . 1 . 1 1 1 3 . 1 . . . 1 1 . 1 . . 7 Weapon 11 | . . 1 . 2 2 . . 1 3 1 . . . . . 1 . . Tool/Special 1 | . . . . . . . . . . . . . . . . . . 1 Average Slot Usage (%) 92 | . 100 100 99 99 97 98 91 98 96 92 86 85 86 88 88 86 88 84 Engine 4 | . 14 14 11 11 9 7 7 2 . . . . . . . . . . Core 2 | . . . . . . . . 10 11 4 . . . . . 1 5 2 Reactor 4 | . . . . . . . . . . 7 13 12 11 11 11 9 5 6 Treads 21 | . 28 28 32 32 25 30 30 25 26 19 13 13 11 11 11 11 11 17 Device 11 | . 7 1 8 7 14 16 7 14 4 11 6 11 19 11 10 12 11 11 Storage 7 | . 14 14 11 11 9 7 7 6 6 6 6 6 5 5 5 5 5 5 Processor 7 | . . . . . . 4 . . 1 6 6 6 14 23 23 21 17 13 Hackware 4 | . . . . . 8 7 . 11 14 6 6 . . . . . . 6 Protection 5 | . 6 12 2 2 2 . 12 4 8 7 13 12 4 5 5 4 9 1 Energy Gun 3 | . . . 3 11 5 . . . . 1 6 3 5 . . 2 7 4 Energy Cannon 5 | . . . 8 10 8 13 2 6 11 12 13 6 5 4 . 1 3 3 Ballistic Gun 4 | . 19 15 . . 5 7 2 . . . . . 5 11 16 9 . 3 Ballistic Cannon 5 | . 8 . 17 10 1 . 10 8 6 4 . 8 . . . 1 3 2 Launcher 1 | . . 12 . . 2 . 4 . . 1 . . . . . . 1 . Peak Build Rating 148 | 7 7 7 18 27 39 42 52 60 74 109 108 120 132 123 121 130 129 148 Average Rating 71 | 5 6 7 13 19 30 39 49 55 63 89 108 105 122 119 120 122 125 123 On Entrance 66 | . 7 7 7 16 27 34 41 52 58 73 108 108 120 119 116 121 125 127 Naked Turns . | . . . . . . . . . . . . . . . . . . . Heaviest Build 156 | 12 16 18 43 43 80 73 101 104 105 122 122 129 147 147 147 151 148 156 Greatest Support 215 | 40 40 40 63 69 69 88 88 90 116 160 160 160 160 160 160 160 160 215 Greatest Overweight (x) 5 | 2 . . 1 . 1 . 1 1 1 1 . 1 . . . . . 5 Average Overweight (x) . | . . . . . . . . . . . . . . . . . . . Largest Inventory Capacity 25 | 8 8 8 15 15 20 20 20 20 20 20 20 20 25 25 25 25 25 25 Average Capacity 20 | 7 8 8 14 15 19 20 20 20 20 20 20 20 20 25 25 25 25 25 Most Carried 25 | 3 8 8 15 15 20 20 20 20 20 20 20 20 25 25 25 25 25 25 Average Carried 19 | 2 6 7 14 14 17 19 19 19 19 19 20 19 20 25 24 23 24 22 Final Capacity 25 | 8 8 8 15 15 20 20 20 20 20 20 20 20 25 25 25 25 25 25 Final Carried 25 | 3 8 8 15 15 20 20 20 20 20 20 20 20 25 25 24 25 25 19 Class Distribution -------------------- 33% | Scavenger-Tank 16% | Mutant 10% | Scavenger-Gunner 9% | Gunner 6% | Skirmisher 5% | Tank 5% | Hacker-Gunner 5% | Hacker-Tank 3% | Scavenger-Mutant Dominant Class ---------------- Mutant | -10/Materials Mutant | -10/Mines Gunner | -9/Materials Gunner | -9/Storage Mutant | -8/Materials Gunner | -7/Factory Tank | -7/DSF Hacker-Mutant | -6/Factory Hacker-Tank | -6/Extension Scavenger-Tank | -6/Cetus Scavenger-Tank | -6/Archives Scavenger-Tank | -6/Hub_04(d) Scavenger-Tank | -5/Factory Scavenger-Tank | -5/Upper Caves Scavenger-Tank | -5/Upper Caves Scavenger-Tank | -5/Warlord Scavenger-Tank | -4/Proximity Caves Scavenger-Gunner | -4/Factory Resources | -11 -10 -10 -9 -9 -8 -7 -7 -6 -6 -6 -6 -6 -5 -5 -5 -5 -4 -4 ----------- Run | Yrd Mat Min Mat Sto Mat Fac DSF Fac Ext Cet Arc Hub Fac Upp Upp War Pro Fac Matter Collected 9297 | 205 207 335 1091 1095 752 . 594 478 510 311 . 889 536 307 150 604 171 1062 Remotely 442 | . . . . . . . . . . . . 155 . 223 64 . . . Salvage Created 9356 | 16 314 30 870 1180 1158 . 293 458 837 241 . 742 623 261 128 904 37 1264 Parts 476 | 2 25 10 75 63 54 . 21 18 26 7 . 46 23 9 6 24 6 61 Haulers Intercepted 9 | . . . 3 3 1 . 1 . 1 . . . . . . . . . Recyclers Shooed 14 | . 1 . 2 1 1 . . 2 2 . . . . . . . . 5 Parts Field Recycled . | . . . . . . . . . . . . . . . . . . . Retrieved Matter . | . . . . . . . . . . . . . . . . . . . Parts Self-Destructed 17 | . . . . . . . . . . . . . . 8 6 . 3 . Prevented . | . . . . . . . . . . . . . . . . . . . Kills | -11 -10 -10 -9 -9 -8 -7 -7 -6 -6 -6 -6 -6 -5 -5 -5 -5 -4 -4 ------- Run | Yrd Mat Min Mat Sto Mat Fac DSF Fac Ext Cet Arc Hub Fac Upp Upp War Pro Fac Combat Hostiles Destroyed 182 | . 9 4 24 24 24 . 9 6 4 3 . 11 7 6 2 20 5 24 Melee 2 | . . . . . 2 . . . . . . . . . . . . . Guns 50 | . 6 . 2 12 12 . . . . . . 2 4 2 2 1 . 7 Cannons 75 | . 3 . 16 8 6 . 3 6 4 2 . 9 2 . . 6 . 10 AOE 46 | . . 4 6 4 4 . 6 . . . . . . 4 . 8 5 5 Classes Destroyed 20 | 1 2 3 5 . 3 . 1 1 . . . 2 . . . 2 . . Worker 21 | . . . 2 2 . . . 2 . . . 8 1 . . . . 6 Builder 10 | . . 1 2 . . . . . . . . 3 . . . . . 4 Tunneler 4 | 1 . . 1 . . . . 1 . . . 1 . . . . . . Hauler 9 | . . . 3 3 1 . 1 . 1 . . . . . . . . . Recycler 14 | . . . 2 2 2 . . 2 4 . . . 1 . . . . 1 Operator 2 | . 1 . . 1 . . . . . . . . . . . . . . Watcher 10 | . . . 3 2 2 . . . . 1 . . . . . . . 2 Swarmer 38 | . . 3 13 3 4 . 7 3 . . . . . . . . 5 . Grunt 66 | . 9 . 3 15 12 . . 1 3 1 . 1 . 4 . 9 . 8 Brawler 4 | . . . . . 1 . . . . . . . . 1 . 2 . . Duelist 2 | . . . . . 1 . . . . . . . . . . . . 1 Protector 3 | . . . . . . . . . . . . 1 . . . 2 . . Sentry 29 | . . . 8 6 5 . . . . . . 4 4 . . . . 2 Demolisher 2 | . . 1 . . . . . . . . . . . . . 1 . . Hunter 10 | . . . . . 1 . 1 . 1 . . . . 1 2 2 . 2 Programmer 16 | . . . . . . . . 2 . . . 1 3 . . . . 10 Heavy 2 | . . . . . . . 1 . . . . . . . . . . 1 Behemoth 1 | . . . . . . . . . . . . 1 . . . . . . Cetus Guard 2 | . . . . . . . . . . 2 . . . . . . . . Lightning 3 | . . . . . . . . . . . . 3 . . . . . . Striker 2 | . . . . . . . . . . . . . . . . 2 . . Executioner 2 | . . . . . . . . . . . . . . . . 2 . . Butcher 1 | . . . . . . . . . . . . . . . . 1 . . Best Kill Streak 17 | 1 3 3 10 5 7 . 4 4 2 2 . 10 2 4 2 16 5 17 Combat Bots Only 16 | . 3 3 5 5 7 . 4 3 1 1 . 3 2 4 2 16 5 8 Max Kills in Single Turn 10 | 1 1 2 4 2 3 . 3 1 2 1 . 9 1 3 1 2 2 10 Gunslinging . | . . . . . . . . . . . . . . . . . . . Exploded 5 | . . 2 3 2 3 . 3 . . . . . . 3 . 2 2 5 Melee 1 | . . . . . 1 . . . . . . . . . . . . . Uniques/NPCs Destroyed 1 | . . . . . . . . . . 1 . . . . . . . . A7 (-6/Cetus) Combat | -11 -10 -10 -9 -9 -8 -7 -7 -6 -6 -6 -6 -6 -5 -5 -5 -5 -4 -4 -------- Run | Yrd Mat Min Mat Sto Mat Fac DSF Fac Ext Cet Arc Hub Fac Upp Upp War Pro Fac Hostile Shots Fired 1273 | . 38 3 106 74 122 . 50 24 43 21 . 147 53 18 18 32 4 520 Missed 339 | . 9 1 35 26 34 . 23 7 11 10 . 43 12 3 2 4 2 117 Hits 934 | . 29 2 71 48 88 . 27 17 32 11 . 104 41 15 16 28 2 403 Melee 16 | . . . . . 4 . . . . . . . . . . 1 . 11 Projectile 918 | . 29 2 71 48 84 . 27 17 32 11 . 104 41 15 16 27 2 392 AOE 14 | . . 1 . . . . . . . . . 1 . . . 12 . . Critical Strikes 60 | . . . . 4 6 . 2 . 3 2 . 11 4 1 1 1 1 24 Part Disruptions 3 | . . . . . . . . . . . . 2 . . . . . 1 Damage Taken 18011 | . 321 95 746 611 1262 . 802 302 400 338 . 2559 521 213 292 1070 82 8397 Core 1668 | . 22 12 48 85 48 . 45 15 11 24 . 78 . 9 22 16 54 1179 Absorbed by Shields 907 | . . . . . . . . . 70 . . 19 447 109 . . . 262 Reduced by Siege Mode 546 | . . . . . . . . . . 8 . 153 28 3 17 30 . 307 Regen/Repaired (Parts) 1223 | . . . . 17 . . . . . . . . . . . 271 . 935 Core Remaining (%) 87 | 100 . 86 . 66 91 . 93 . . . . 84 . . . . 89 . Volleys Fired 651 | 2 29 24 56 51 58 7 13 24 30 14 . 53 42 24 5 47 13 159 Largest 3 | 2 2 1 3 3 3 1 3 3 3 3 . 3 3 3 3 3 1 3 Hottest 330 | 40 50 30 136 166 159 65 137 174 178 255 . 260 156 156 99 320 90 330 Shots Fired 1273 | 4 57 24 147 137 127 7 28 39 69 33 . 133 83 33 16 67 13 256 Gun 471 | 4 32 8 21 49 78 . 7 . . . . 32 43 13 16 34 . 134 Cannon 746 | . 25 . 122 83 47 7 15 39 69 30 . 101 40 17 . 20 10 121 Launcher 56 | . . 16 4 5 2 . 6 . . 3 . . . 3 . 13 3 1 Special . | . . . . . . . . . . . . . . . . . . . Kinetic 517 | 4 57 8 94 43 32 . 17 13 16 10 . 62 43 13 16 6 . 83 Thermal 604 | . . . 31 86 64 7 3 26 53 11 . 71 40 17 . 32 10 153 Explosive 50 | . . 16 4 5 2 . 3 . . . . . . 3 . 13 3 1 Electromagnetic 83 | . . . 18 3 29 . 5 . . 12 . . . . . 16 . . Entropic 19 | . . . . . . . . . . . . . . . . . . 19 Robot Hit Streak 28 | 2 8 4 10 12 13 . 15 8 11 11 . 8 14 11 12 28 1 14 Robot Miss Streak 11 | 1 2 3 3 4 4 . 3 1 2 5 . 11 2 1 2 1 1 4 Penetration Max 1 | . . . . . . . . . . . . . 1 . . 1 . 1 Secondary Targets 3 | . . . . . 2 . . . . . . . . . . 1 . . Max Gunslinging Chain 1 | . . . . . 1 . . . . . . . . . . 1 . . Shots Hit Robots 746 | 2 36 4 82 70 93 . 20 19 40 26 . 88 53 15 13 46 1 138 Core Hits 487 | 1 16 9 44 41 60 . 21 12 19 24 . 65 22 12 4 60 9 68 Critical Kills 6 | . . . . . 1 . . . . 1 . . . 1 1 . . 2 Critical Parts Destroyed 8 | . . . . . 1 . . 1 . . . . 3 . 1 . . 2 Critical Strikes 39 | . 1 . 6 4 5 . . 2 2 1 . 1 3 1 2 5 . 6 Burn 4 | . . . . 1 3 . . . . . . . . . . . . . Meltdown 3 | . . . . . 1 . . . . 1 . . . . . . . 1 Destroy 8 | . . . . . . . . . . . . . 3 1 2 . . 2 Blast 16 | . 1 . 6 3 . . . 1 2 . . 1 . . . . . 2 Corrupt 5 | . . . . . . . . . . . . . . . . 5 . . Smash 2 | . . . . . 1 . . 1 . . . . . . . . . . Detonate 1 | . . . . . . . . . . . . . . . . . . 1 Melee Attacks 49 | . . . 22 . 12 2 . 13 . . . . . . . . . . Impact 38 | . . . 16 . 7 2 . 13 . . . . . . . . . . Slashing 11 | . . . 6 . 5 . . . . . . . . . . . . . Piercing . | . . . . . . . . . . . . . . . . . . . Sneak Attacks 4 | . . . 1 . . . . 3 . . . . . . . . . . Combat Hostiles . | . . . . . . . . . . . . . . . . . . . Follow-up Attacks . | . . . . . . . . . . . . . . . . . . . Damage Inflicted 27556 | 24 527 283 1884 1770 2328 . 1202 860 1213 1045 . 3629 1624 764 223 3292 353 6535 Guns 8265 | 24 303 55 227 671 1093 . 128 . . . . 632 825 242 223 728 . 3114 Cannons 11313 | . 210 . 1212 754 689 . 335 482 1197 750 . 2111 790 . . 978 . 1805 Explosions 7089 | . . 225 324 323 417 . 739 . . 295 . 792 9 522 . 1586 353 1504 Melee 512 | . . . 57 . 121 . . 334 . . . . . . . . . . Ramming 377 | . 14 3 64 22 8 . . 44 16 . . 94 . . . . . 112 Kinetic 8039 | 24 513 55 831 343 422 . 360 293 289 209 . 1427 825 242 223 183 . 1800 Thermal 9363 | . . . 431 1051 1018 . 80 189 908 440 . 1316 790 . . 650 . 2490 Explosive 5481 | . . 225 324 323 307 . 522 . . . . . . 522 . 1586 353 1319 Electromagnetic 2970 | . . . 177 31 452 . 240 . . 396 . 792 9 . . 873 . . Impact 481 | . . . 57 . 90 . . 334 . . . . . . . . . . Slashing 31 | . . . . . 31 . . . . . . . . . . . . . Piercing . | . . . . . . . . . . . . . . . . . . . Entropic 814 | . . . . . . . . . . . . . . . . . . 814 Highest Corruption 64 | . . . 2 4 3 5 5 1 8 13 13 64 5 5 5 5 . 10 Average Corruption 5 | . . . 1 3 3 5 5 1 6 12 13 20 4 5 5 5 . 4 Corruption Purged 1 | . . . . . . . . . 1 . . . . . . . . . Corruption Blocked . | . . . . . . . . . . . . . . . . . . . Effects 253 | . . . 26 23 12 2 13 . 24 28 4 38 8 29 10 . . 36 Message Errors 60 | . . . 9 4 3 . 3 . 6 8 1 9 3 7 1 . . 6 Matter Fused 54 | . . . 3 4 2 1 1 . 6 5 1 9 . 7 3 . . 12 Heat Flow Errors 31 | . . . 5 3 . 1 2 . 4 . 1 5 . 4 1 . . 5 Energy Discharges 32 | . . . 4 3 1 . 3 . 5 2 . 1 2 5 . . . 6 Parts Rejected 8 | . . . . 1 1 . 1 . . 1 . 1 . . . . . 3 Parts Fused 1 | . . . . . . . . . . . . . . . 1 . . . Data Loss (minor) 31 | . . . 3 4 1 . 1 . 2 4 . 5 1 5 3 . . 2 Data Loss (major) 10 | . . . . 2 4 . 1 . . 1 . 1 . 1 . . . . Misfires 10 | . . . 2 2 . . . . . 2 . 1 1 . 1 . . 1 Alerts 5 | . . . . . . . . . 1 3 1 . . . . . . . Misdirections 2 | . . . . . . . . . . . . 1 . . . . . 1 Weapon Failures 9 | . . . . . . . 1 . . 2 . 5 1 . . . . . Overload Shots 6 | . . . . . . . . . . . . . . . . 2 . 4 Overflow Damage 775 | . . . 36 64 71 . 61 109 5 . . 85 22 56 . 82 . 184 Projectiles 186 | . . . 8 . 10 . . 5 5 . . 4 22 . . 82 . 50 Explosions 396 | . . . 1 64 11 . 61 . . . . 77 . 56 . . . 126 Melee 193 | . . . 27 . 50 . . 104 . . . 4 . . . . . 8 Knockbacks 40 | . 3 . 5 1 1 . . 3 2 . . 14 . . . . . 11 Impact 3 | . . . 1 . . . . . . . . 1 . . . . . 1 Kinetic 36 | . 3 . 4 1 1 . . 3 2 . . 12 . . . . . 10 Secondary 1 | . . . . . . . . . . . . 1 . . . . . . Self-Inflicted Damage 535 | . . 49 17 4 11 . 45 . . . . 103 42 44 . . 56 164 Shots 19 | . . 4 2 1 1 . 2 . . . . 1 1 2 . . 1 4 Rammed 28 | . 3 1 7 2 . 1 . 3 2 . . 4 . . . . . 5 Targets Rammed 36 | . 3 1 8 3 1 1 . 3 2 . . 5 . . . . . 9 Kicked 2 | . . . . . . . . . . . . . . . . . . 2 Crushed 6 | . . . 1 1 1 . . . . . . 1 . . . . . 2 Highest Temperature 467 | . 25 . 467 327 225 97 289 240 294 197 113 371 212 250 200 347 . 395 Average Temperature 88 | . 7 . 90 101 76 20 120 68 95 106 59 107 60 80 99 112 . 80 Received Heat Transfer 2982 | . 174 . 135 315 540 . . 18 153 36 . 182 75 64 . 105 . 1185 Effects 12 | . . . . 5 2 . . . . . . . . . . 1 . 4 Shutdowns 1 | . . . . . . . . . . . . . . . . 1 . . Energy Bleed 2 | . . . . . 1 . . . . . . . . . . . . 1 Interference 9 | . . . . 5 1 . . . . . . . . . . . . 3 Siege Activations 26 | . . . . . . . . . . 1 . 4 5 2 1 2 . 11 Total Turns 477 | . . . . . . . . . . 12 . 136 54 72 19 40 . 144 Longest Duration 67 | . . . . . . . . . . 12 . 67 15 53 19 22 . 48 Martial Activations . | . . . . . . . . . . . . . . . . . . . Shielding Activations . | . . . . . . . . . . . . . . . . . . . Robots Disrupted . | . . . . . . . . . . . . . . . . . . . Combat Hostiles . | . . . . . . . . . . . . . . . . . . . Robots Corrupted 8 | . . . 1 . 1 . . 1 . . . 1 . . . 4 . . Combat Hostiles 4 | . . . . . . . . . . . . . . . . 4 . . Parts Fried 25 | . . . 3 . 4 . . 4 . 2 . 5 . . . 7 . . Impact Corruptions 8 | . . . 1 . 1 . . 4 . . . 1 . . . . . 1 Robots Melted 6 | . . . . . 1 . . . . 1 . . 1 . . 1 . 2 Combat Hostiles 5 | . . . . . . . . . . 1 . . 1 . . 1 . 2 Parts Melted 26 | . . . . 1 3 . . 2 4 3 . 1 5 . . 1 . 6 Heat Transferred 13177 | . . . 777 1998 1876 . 111 222 1160 700 . 1598 1150 . . 571 . 3014 Parts Sabotaged . | . . . . . . . . . . . . . . . . . . . Parts Stolen . | . . . . . . . . . . . . . . . . . . . Parts Stripped . | . . . . . . . . . . . . . . . . . . . Power Chain Reactions 3 | . . . . . 1 . 1 . . 1 . . . . . . . . Alert | -11 -10 -10 -9 -9 -8 -7 -7 -6 -6 -6 -6 -6 -5 -5 -5 -5 -4 -4 ------- Run | Yrd Mat Min Mat Sto Mat Fac DSF Fac Ext Cet Arc Hub Fac Upp Upp War Pro Fac Maximum Alert Level 3 | . . . 1 3 1 . 1 . 1 1 1 2 1 . . . . 1 Low Security (%) 64 | 100 100 100 43 20 47 100 73 100 85 18 83 56 46 . . . . 69 Level 1 32 | . . . 56 64 52 . 26 . 14 81 16 . 53 . . . . 30 Level 2 2 | . . . . 10 . . . . . . . 43 . . . . . . Level 3 . | . . . . 4 . . . . . . . . . . . . . . Level 4 . | . . . . . . . . . . . . . . . . . . . Level 5 . | . . . . . . . . . . . . . . . . . . . High Security . | . . . . . . . . . . . . . . . . . . . Max Security . | . . . . . . . . . . . . . . . . . . . Sterilizations 1 | . . . . . . . 1 . . . . . . . . . . . Peak Influence 707 | 5 142 106 388 707 382 86 291 152 304 308 280 542 293 . . . . 351 Initial 291 | . . 16 39 162 291 86 . 152 11 143 97 98 249 . . . . 9 Average 154 | . 36 7 208 321 221 16 148 38 107 237 120 264 210 . . . . 125 Influence Increases 8533 | 5 315 188 1011 996 736 57 291 259 873 507 243 790 384 140 50 400 110 1178 Destroy 0b10 Robot/C 4240 | . 180 80 600 480 480 . 180 120 340 220 100 200 140 120 40 360 100 500 Destroy 0b10 Robot/NC 405 | 5 5 5 65 50 25 . 15 25 45 10 5 65 10 . . 10 . 65 Destroy Leader 888 | . 40 10 172 130 116 . 30 40 46 10 . 80 50 20 10 . 10 124 Allied During Kill 698 | . . 11 24 . . . . . 318 240 105 . . . . . . . Successful Hack 472 | . 27 . 24 9 42 34 . 33 68 17 . 12 24 . . . . 182 Select Force Hacks 150 | . 60 . 60 30 . . . . . . . . . . . . . . Disable Machine 570 | . . 15 30 60 15 15 15 . 15 . 30 270 45 . . . . 60 Anti-Garrison Action 200 | . . . . 200 . . . . . . . . . . . . . . Destroy Structure 715 | . 3 67 36 37 43 8 36 26 26 10 3 148 40 . . . . 232 Partial Spotted 15 | . . . . . . . . . . . . 15 . . . . . . Lose Combat Pursuer 180 | . . . . . 15 . 15 15 15 . . . 75 . . 30 . 15 Influence Decreases 8290 | 5 271 132 726 689 1238 247 . 525 642 519 207 560 665 369 50 142 352 951 Entered New Map 2023 | . . 28 61 223 401 104 . 139 14 113 147 182 261 85 . . 258 7 Time Decay 4955 | 5 119 104 595 446 607 143 . 386 408 286 40 318 404 284 50 112 94 554 Lost Part 560 | . 10 . . 20 80 . . . 10 . . 60 . . . 30 . 350 Lost Ally 310 | . . . 70 . . . . . 60 120 20 . . . . . . 40 Purge Threat 442 | . 142 . . . 150 . . . 150 . . . . . . . . . Squads Dispatched 40 | . 5 . 3 4 3 1 . 9 3 1 . 4 2 . . . . 5 Investigation 10 | . 4 . 2 2 . . . . 1 1 . . . . . . . . Extermination 10 | . . . . . . 1 . 2 . . . 1 2 . . . . 4 Reinforcement 12 | . 1 . 1 2 3 . . 2 2 . . . . . . . . 1 Assault 2 | . . . . . . . . 2 . . . . . . . . . . Garrison 6 | . . . . . . . . 3 . . . 3 . . . . . . Intercept . | . . . . . . . . . . . . . . . . . . . Searches Triggered . | . . . . . . . . . . . . . . . . . . . Construction Impeded 2 | . . . . . . . . . 1 . . . . . . . . 1 Haulers Reinforced . | . . . . . . . . . . . . . . . . . . . Active Scanning Responses . | . . . . . . . . . . . . . . . . . . . Cargo Convoy Interrupts 1 | . . . . . . . . 1 . . . . . . . . . . Stealth | -11 -10 -10 -9 -9 -8 -7 -7 -6 -6 -6 -6 -6 -5 -5 -5 -5 -4 -4 --------- Run | Yrd Mat Min Mat Sto Mat Fac DSF Fac Ext Cet Arc Hub Fac Upp Upp War Pro Fac Distress Signals 16 | . . . 3 1 3 . . . . 2 1 2 . . . 1 . 3 Communications Jammed 47 | . . . . . . . 5 . . . . 20 . . . . . 22 Distress Signals 33 | . . . . . . . . . . . . 20 . . . . . 13 Times Spotted 294 | . 11 13 39 26 35 . 10 7 15 11 1 19 8 6 2 40 3 48 Peak Tracking Total 19 | . 5 7 5 3 7 . 4 3 3 5 3 6 5 4 2 19 3 13 Tactical Retreats 11 | . . . . . 1 . 1 1 1 . . . 4 . . 2 . 1 Traps | -11 -10 -10 -9 -9 -8 -7 -7 -6 -6 -6 -6 -6 -5 -5 -5 -5 -4 -4 ------- Run | Yrd Mat Min Mat Sto Mat Fac DSF Fac Ext Cet Arc Hub Fac Upp Upp War Pro Fac Traps Triggered 14 | . 1 . 4 1 . . 4 2 . . . 1 . . . . . 1 Indirectly . | . . . . . . . . . . . . . . . . . . . Trap Hack Attempts . | . . . . . . . . . . . . . . . . . . . Triggered . | . . . . . . . . . . . . . . . . . . . Disarmed . | . . . . . . . . . . . . . . . . . . . Reprogrammed . | . . . . . . . . . . . . . . . . . . . Reused . | . . . . . . . . . . . . . . . . . . . Traps Extracted . | . . . . . . . . . . . . . . . . . . . Installed . | . . . . . . . . . . . . . . . . . . . Triggered . | . . . . . . . . . . . . . . . . . . . Machines | -11 -10 -10 -9 -9 -8 -7 -7 -6 -6 -6 -6 -6 -5 -5 -5 -5 -4 -4 ---------- Run | Yrd Mat Min Mat Sto Mat Fac DSF Fac Ext Cet Arc Hub Fac Upp Upp War Pro Fac Machines Disabled 40 | . . 1 2 4 1 1 1 . 1 1 2 18 3 . . . 1 4 Max in Single Turn 16 | . . 1 1 1 1 1 1 . 1 . . 16 2 . . . 1 1 Garrison Access 5 | . . . . 1 1 1 . 2 . . . . . . . . . . Network Hub 2 | . . . . . . . . . . . . 2 . . . . . . Machines Repaired . | . . . . . . . . . . . . . . . . . . . Machines Dismantled 1 | . . . . 1 . . . . . . . . . . . . . . Machines Sabotaged . | . . . . . . . . . . . . . . . . . . . Overloaded Fab Kills . | . . . . . . . . . . . . . . . . . . . Hacking | -11 -10 -10 -9 -9 -8 -7 -7 -6 -6 -6 -6 -6 -5 -5 -5 -5 -4 -4 --------- Run | Yrd Mat Min Mat Sto Mat Fac DSF Fac Ext Cet Arc Hub Fac Upp Upp War Pro Fac Machines Accessed 93 | . 5 . 8 7 12 5 . 9 20 3 1 3 2 1 . 2 2 13 Terminals 61 | . 3 . 6 4 7 3 . 6 20 3 . 3 . . . . 1 5 Fabricators 3 | . . . . . . . . . . . . . . . . . . 3 Repair Stations 2 | . . . . 1 . . . . . . . . . . . . . 1 Recycling Units 12 | . 2 . 2 1 2 1 . 1 . . . . . . . . . 3 Scanalyzers 5 | . . . . . 2 . . 1 . . . . 1 . . . . 1 Garrison Access 5 | . . . . 1 1 1 . 1 . . . . 1 . . . . . Total Hacks 338 | . 21 . 24 12 52 7 . 28 64 10 25 5 9 1 . 7 2 71 Successful 187 | . 13 . 13 8 31 5 . 13 30 2 25 2 1 1 . 7 2 34 Failed 151 | . 8 . 11 4 21 2 . 15 34 8 . 3 8 . . . . 37 Catastrophic 25 | . 1 . . 1 1 1 . 2 4 5 . 2 1 . . . . 7 Database Lockouts . | . . . . . . . . . . . . . . . . . . . Manual 161 | . 13 . 15 3 27 4 . 21 23 1 . 5 . . . 1 1 47 Terminals 201 | . 12 . 18 7 33 4 . 21 64 10 . 5 . . . . 1 26 Fabricators 19 | . . . . . . . . . . . . . . . . . . 19 Repair Stations 8 | . . . . 2 . . . . . . . . . . . . . 6 Recycling Units 52 | . 9 . 6 1 10 2 . 5 . . . . . . . . . 19 Scanalyzers 13 | . . . . . 6 . . 1 . . . . 5 . . . . 1 Garrison Access 11 | . . . . 2 3 1 . 1 . . . . 4 . . . . . Terminal Hacks 100 | . 4 . 5 4 11 1 . 8 24 2 25 . . 1 . 7 2 6 Record 30 | . . . . . . . . 1 . 1 25 . . . . . 2 1 Part Schematic 2 | . . . . . . . . 1 1 . . . . . . . . . Robot Analysis 3 | . . . . . 2 . . . 1 . . . . . . . . . Prototype ID Bank 9 | . 1 . . . . . . . 2 . . . . . . 6 . . Open Door 17 | . . . . 2 . . . 1 11 1 . . . 1 . 1 . . Open DSF 3 | . . . . . . 1 . 1 . . . . . . . . . 1 Level Access Points 1 | . . . . . 1 . . . . . . . . . . . . . Branch Access Points 3 | . . . 1 . 1 . . 1 . . . . . . . . . . Scanalyzer Index 1 | . . . . . . . . . . . . . . . . . . 1 Alert Level 4 | . . . . 1 . . . 1 1 . . . . . . . . 1 Unreport Threat 3 | . 1 . . . 1 . . . 1 . . . . . . . . . Locate Traps 4 | . . . 1 . . . . . 2 . . . . . . . . 1 Maintenance Status 1 | . . . . . 1 . . . . . . . . . . . . . Security Status 2 | . . . . . 1 . . 1 . . . . . . . . . . Recall Investigation 2 | . . . 1 . . . . . 1 . . . . . . . . . Recall Reinforcements 1 | . . . . . . . . . 1 . . . . . . . . . Hauler Manifests 1 | . . . . 1 . . . . . . . . . . . . . . Registered Components 1 | . . . . . 1 . . . . . . . . . . . . . Zone Layout 12 | . 2 . 2 . 3 . . 1 3 . . . . . . . . 1 Fabricator Hacks . | . . . . . . . . . . . . . . . . . . . Repair Station Hacks 6 | . . . . 2 . . . . . . . . . . . . . 4 Scan Component 3 | . . . . 1 . . . . . . . . . . . . . 2 Repair 3 | . . . . 1 . . . . . . . . . . . . . 2 Recycling Unit Hacks 10 | . 1 . 1 . 5 . . . . . . . . . . . . 3 Report Inventory 7 | . . . 1 . 3 . . . . . . . . . . . . 3 Retrieve Matter 1 | . . . . . 1 . . . . . . . . . . . . . Retrieve Components 2 | . 1 . . . 1 . . . . . . . . . . . . . Scanalyzer 8 | . . . . . 6 . . . . . . . 1 . . . . 1 Insert Component 4 | . . . . . 2 . . . . . . . 1 . . . . 1 Analyze 4 | . . . . . 4 . . . . . . . . . . . . . Garrison Access Hacks 4 | . . . . . 2 1 . 1 . . . . . . . . . . Seal Access 3 | . . . . . 1 1 . 1 . . . . . . . . . . Coupler Status 1 | . . . . . 1 . . . . . . . . . . . . . Unauthorized Hacks 59 | . 8 . 7 2 7 3 . 4 6 . . 2 . . . . . 20 Terminals 28 | . 4 . 3 . 5 1 . 3 6 . . 2 . . . . . 4 Track 17 | . 2 . 2 . 3 1 . 2 3 . . 2 . . . . . 2 Assimilate 1 | . . . 1 . . . . . . . . . . . . . . . Botnet 8 | . 1 . . . 1 . . 1 3 . . . . . . . . 2 Operators 2 | . 1 . . . 1 . . . . . . . . . . . . . Fabricators 5 | . . . . . . . . . . . . . . . . . . 5 Report 2 | . . . . . . . . . . . . . . . . . . 2 Liberate 1 | . . . . . . . . . . . . . . . . . . 1 Fabnet 2 | . . . . . . . . . . . . . . . . . . 2 Repair Stations . | . . . . . . . . . . . . . . . . . . . Recycling Units 25 | . 4 . 4 1 2 2 . 1 . . . . . . . . . 11 Monitor 4 | . 1 . . . . . . . . . . . . . . . . 3 Reject 3 | . . . . . . . . . . . . . . . . . . 3 Recyclers 6 | . 1 . 1 . 1 1 . . . . . . . . . . . 2 Mask 7 | . . . 1 . 1 1 . 1 . . . . . . . . . 3 Tunnel 5 | . 2 . 2 1 . . . . . . . . . . . . . . Scanalyzers . | . . . . . . . . . . . . . . . . . . . Garrison Access 1 | . . . . 1 . . . . . . . . . . . . . . Jam 1 | . . . . 1 . . . . . . . . . . . . . . Data Cores Recovered . | . . . . . . . . . . . . . . . . . . . Used . | . . . . . . . . . . . . . . . . . . . Hacking Detections 60 | . 5 . 8 3 8 3 . 4 9 4 . 3 2 . . . 1 10 Full Trace Events 5 | . 2 . 1 . . . . . 1 1 . . . . . . . . Feedback Events . | . . . . . . . . . . . . . . . . . . . Feedback Blocked . | . . . . . . . . . . . . . . . . . . . Robot Schematics Acquired . | . . . . . . . . . . . . . . . . . . . Robots Built . | . . . . . . . . . . . . . . . . . . . Authchips . | . . . . . . . . . . . . . . . . . . . Time . | . . . . . . . . . . . . . . . . . . . Total Robot Build Rating . | . . . . . . . . . . . . . . . . . . . Part Schematics Acquired 4 | . . . . . 2 . . 1 1 . . . . . . . . . Parts Built . | . . . . . . . . . . . . . . . . . . . Authchips . | . . . . . . . . . . . . . . . . . . . Time . | . . . . . . . . . . . . . . . . . . . Total Part Build Rating . | . . . . . . . . . . . . . . . . . . . Parts Repaired 3 | . . . . 1 . . . . . . . . . . . . . 2 Time 134 | . . . . 26 . . . . . . . . . . . . . 108 Parts Recycled . | . . . . . . . . . . . . . . . . . . . Recycled Matter . | . . . . . . . . . . . . . . . . . . . Retrieved Matter 149 | . . . . . 149 . . . . . . . . . . . . . Retrieved Components 4 | . 3 . . . 1 . . . . . . . . . . . . . Parts Scanalyzed 3 | . . . . . 2 . . . . . . . 1 . . . . . Part Schematics Acquired 2 | . . . . . 2 . . . . . . . . . . . . . Parts Damaged 1 | . . . . . . . . . . . . . 1 . . . . . Bothacking | -11 -10 -10 -9 -9 -8 -7 -7 -6 -6 -6 -6 -6 -5 -5 -5 -5 -4 -4 ------------ Run | Yrd Mat Min Mat Sto Mat Fac DSF Fac Ext Cet Arc Hub Fac Upp Upp War Pro Fac Used RIF Installer . | . . . . . . . . . . . . . . . . . . . Robots Hacked . | . . . . . . . . . . . . . . . . . . . Non-combat . | . . . . . . . . . . . . . . . . . . . Combat . | . . . . . . . . . . . . . . . . . . . Robot Hacks Applied . | . . . . . . . . . . . . . . . . . . . Relay Couplers Released 3 | . . . . 1 . . . 2 . . . . . . . . . . Machine Destruction 3 | . . . . 1 . . . 2 . . . . . . . . . . Fabnet Peak Effective % . | . . . . . . . . . . . . . . . . . . . Robots Rewired 6 | . . . . . . . . . 6 . . . . . . . . . Allies Hacked . | . . . . . . . . . . . . . . . . . . . Hacks Repelled . | . . . . . . . . . . . . . . . . . . . Allies | -11 -10 -10 -9 -9 -8 -7 -7 -6 -6 -6 -6 -6 -5 -5 -5 -5 -4 -4 -------- Run | Yrd Mat Min Mat Sto Mat Fac DSF Fac Ext Cet Arc Hub Fac Upp Upp War Pro Fac Total Allies 31 | . . 3 1 . . . . . 20 5 . . . . . . . 2 Largest Group 16 | . . 3 2 . . . . . 16 15 13 . . . . . . 2 Highest-Rated Group 762 | . . 40 32 . . . . . 582 762 700 . . . . . . 98 Highest-Rated Ally 159 | . . 16 16 . . . . . 159 153 96 . . . . . . 49 Initial Warlord ECA Mod 91 | . . . . . . . . 9 9 9 9 9 8 8 8 8 7 7 Total Orders 2 | . . . 2 . . . . . . . . . . . . . . . STAY 1 | . . . 1 . . . . . . . . . . . . . . . FOLLOW 1 | . . . 1 . . . . . . . . . . . . . . . Ally Attacks 259 | . . 9 18 . . . . . 124 69 32 . . . . . . 7 Total Damage 5516 | . . 50 237 . . . . . 2772 1374 806 . . . . . . 277 Kills 39 | . . 1 6 . . . . . 16 9 6 . . . . . . 1 Allies Corrupted . | . . . . . . . . . . . . . . . . . . . Allies Melted . | . . . . . . . . . . . . . . . . . . . Intel | -11 -10 -10 -9 -9 -8 -7 -7 -6 -6 -6 -6 -6 -5 -5 -5 -5 -4 -4 ------- Run | Yrd Mat Min Mat Sto Mat Fac DSF Fac Ext Cet Arc Hub Fac Upp Upp War Pro Fac Active Infowar (turns) 12835 | 34 221 108 1414 338 1343 812 361 1060 196 . . 321 794 989 697 1500 544 2103 Optics 2794 | . . . . . . . . . . . . . . 989 697 1108 . . Sensors 6177 | . . . . . . 319 10 . . . . . 794 901 674 1500 544 1435 Structural 2301 | . . . 138 98 1243 812 10 . . . . . . . . . . . Seismic 4889 | 34 221 108 1276 240 1332 337 . 1060 194 . . 87 . . . . . . T.N.C. 2 | . . . . . . . . . 2 . . . . . . . . . Jamming 2380 | . . . . . . . 351 . . . . 234 135 . . . . 1660 Robot Analysis Total 3 | . . . . . 2 . . . 1 . . . . . . . . . Derelict Logs Recovered 3 | . . 1 . . . . . . . . . . . . 1 . 1 . Drone Launches . | . . . . . . . . . . . . . . . . . . . Drone Recoveries . | . . . . . . . . . . . . . . . . . . . Exploration | -11 -10 -10 -9 -9 -8 -7 -7 -6 -6 -6 -6 -6 -5 -5 -5 -5 -4 -4 ------------- Run | Yrd Mat Min Mat Sto Mat Fac DSF Fac Ext Cet Arc Hub Fac Upp Upp War Pro Fac Turns Passed 19042 | 89 437 894 1889 1102 1970 812 431 1296 1309 633 85 701 972 989 697 1575 544 2617 Spaces Moved 8413 | 46 172 500 843 416 843 442 145 567 577 235 50 251 419 495 412 855 304 841 Core 10 | 10 . . . . . . . . . . . . . . . . . . Treads 8288 | 36 172 500 808 416 843 442 145 567 577 235 50 251 419 495 412 855 304 761 Legs 80 | . . . . . . . . . . . . . . . . . . 80 Wheels 35 | . . . 35 . . . . . . . . . . . . . . . Hover . | . . . . . . . . . . . . . . . . . . . Flight . | . . . . . . . . . . . . . . . . . . . Fastest Speed 50 | 50 160 160 95 160 155 156 156 161 160 160 160 160 160 160 160 160 160 95 Average Speed 168 | 150 160 160 157 160 178 156 223 185 184 165 160 161 160 160 160 160 160 181 Slowest Speed 540 | 160 160 160 160 160 240 156 238 241 245 240 160 240 160 160 160 160 160 540 Overloaded Moves . | . . . . . . . . . . . . . . . . . . . Propulsion Burnouts . | . . . . . . . . . . . . . . . . . . . Robots Hopped . | . . . . . . . . . . . . . . . . . . . Potential Cave-ins 6 | . . 5 . . . . . . . . . . . . . 1 . . Cave-ins Triggered . | . . . . . . . . . . . . . . . . . . . Exploration Rate (%) 54 | 4 31 84 83 70 76 10 96 13 74 79 66 38 9 70 68 86 54 30 Regions Visited 18 Branch Regions 10 Pre-discovered Areas 8 | . 2 1 2 1 . . . . . . . . . 1 . . 1 . Known Exits Taken 9 | . . . 1 . 1 1 . 1 . . . . 1 1 1 1 1 . Unknown Exits Taken 8 | 1 1 1 . 1 . . . . 1 1 1 1 . . . . . . Scrap Searched 8 | . . 1 . . . . . . . . . . . 2 3 . 2 . Spaces Dug 195 | . . . 18 . 8 8 12 22 9 . . 3 11 16 . 4 24 60 Terrain Destroyed 808 | . . 110 33 39 40 8 39 26 17 5 . 188 20 49 2 57 59 116 Melee 29 | . . . 11 . 8 2 . 8 . . . . . . . . . . Projectile 231 | . . . . . . 6 . 18 17 . . 29 20 18 2 6 9 106 AOE 548 | . . 110 22 39 32 . 39 . . 5 . 159 . 31 . 51 50 10 Terrain Rammed . | . . . . . . . . . . . . . . . . . . . Walls Destroyed . | . . . . . . . . . . . . . . . . . . . Machines Disabled . | . . . . . . . . . . . . . . . . . . . Actions | -11 -10 -10 -9 -9 -8 -7 -7 -6 -6 -6 -6 -6 -5 -5 -5 -5 -4 -4 --------- Run | Yrd Mat Min Mat Sto Mat Fac DSF Fac Ext Cet Arc Hub Fac Upp Upp War Pro Fac Total 12081 | 58 277 570 1239 720 1167 556 227 743 756 455 55 427 660 656 437 1020 347 1711 Wait 2016 | . 62 37 200 165 140 77 31 96 44 165 2 58 147 122 12 72 2 584 Move 8395 | 45 171 499 842 415 842 441 144 566 576 234 49 250 418 494 411 854 303 841 Hop . | . . . . . . . . . . . . . . . . . . . Pick Up 193 | 3 8 2 24 11 29 9 6 7 14 9 . 12 17 . 1 16 2 23 Fast Attach 88 | 7 . . 4 5 6 2 5 5 8 9 . 7 3 . 1 3 7 16 Attach 78 | . 2 . 4 2 9 3 2 3 5 2 . 7 2 . . 7 2 28 Detach 7 | . . . . . . 1 . 1 1 . . 1 . . . . 1 2 Swap 305 | 1 1 4 53 39 46 3 8 13 26 2 . 20 16 16 5 7 7 38 Drop 216 | . 1 3 26 21 24 10 10 10 25 20 . 14 15 . 2 14 10 11 Fire 651 | 2 29 24 56 51 58 7 13 24 30 14 . 53 42 24 5 47 13 159 Melee 49 | . . . 22 . 12 2 . 13 . . . . . . . . . . Ram . | . . . . . . . . . . . . . . . . . . . Kick 2 | . . . . . . . . . . . . . . . . . . 2 Crush 34 | . 3 1 8 3 1 1 . 3 2 . . 5 . . . . . 7 Escape Stasis 10 | . . . . . . . 8 2 . . . . . . . . . . Rewire 29 | . . . . . . . . . 25 . 4 . . . . . . . Trap . | . . . . . . . . . . . . . . . . . . . Miscellaneous 8 | . . . . 8 . . . . . . . . . . . . . . Route ------- -11/Scrapyard -10/Materials (discovered 2 exits: [*Min] / [*Sub]) -10/Mines (discovered 2 exits: *Mat x2) -9/Materials (discovered 5 exits: *Mat x2 / *Min x2 / *Sto) -9/Storage -8/Materials (discovered 3 exits: *Fac x3) -7/Factory (discovered 2 exits: *Fac / DSF) -7/DSF -6/Factory (discovered 4 exits: Low x2 / *Ext x2) -6/Extension (discovered 3 exits: *Fac x2 / *Cet) -6/Cetus (discovered 2 exits: *Fac / *Arc) -6/Archives -6/Hub_04(d) -5/Factory -5/Upper Caves -5/Upper Caves (discovered 2 exits: *Fac / *War) -5/Warlord -4/Proximity Caves -4/Factory (discovered 1 exit: *Arm) History --------- Turn | Location | Event 24 | -11/Scrapyard | Discovered new exit (range 14) 90 | -11/Scrapyard | Entered Materials 303 | -10/Materials | Build established: Mutant 369 | -10/Materials | Discovered new exit (range 9) 503 | -10/Materials | Discovered new exit (range 8) 527 | -10/Materials | Entered Mines 580 | -10/Mines | Assembled infested the area 853 | -10/Mines | Discovered new exit (range 15) 893 | -10/Mines | Assisted by bots powering up and referring to "LRC-V3" 1381 | -10/Mines | Discovered new exit (range 9) 1421 | -10/Mines | Entered Materials 1421 | -9/Materials | Accompanied by 3 allies 1421 | -9/Materials | Evolved 2 slots: Propulsion x1, Weapon x1 1636 | -9/Materials | Discovered new exit (range 6) 1845 | -9/Materials | Discovered new exit (range 3) 2383 | -9/Materials | Discovered new exit (range 11) 2875 | -9/Materials | Identified exit to Mines 2875 | -9/Materials | Identified exit to Storage 3310 | -9/Materials | Entered Storage 3898 | -9/Storage | Repaired Seismic Detector 4173 | -9/Storage | Discovered new exit (range 16) 4313 | -9/Storage | Build established: Gunner 4412 | -9/Storage | Entered Materials 4412 | -8/Materials | Evolved 2 slots: Utility x2 4573 | -8/Materials | Identified exit to Factory 5406 | -8/Materials | Destroyed 7 combat bots 5406 | -8/Materials | Lost 6 parts (3n2u1w) 5998 | -8/Materials | Build established: Mutant 6323 | -8/Materials | Build established: Skirmisher 6382 | -8/Materials | Entered Factory 6382 | -7/Factory | Evolved 2 slots: Propulsion x1, Utility x1 6855 | -7/Factory | Build established: Gunner 6900 | -7/Factory | Discovered new exit (range 8) 6909 | -7/Factory | Identified exit to Factory 6955 | -7/Factory | Identified exit to DSF 7194 | -7/Factory | Entered DSF 7240 | -7/DSF | Additional patrols routed to DSF 7500 | -7/DSF | Discovered exit to Factory (range 16) 7521 | -7/DSF | Sterilization system engaged 7529 | -7/DSF | Build established: Tank 7541 | -7/DSF | Ambient heat levels rising (+10) 7556 | -7/DSF | Ambient heat levels rising (+10) 7571 | -7/DSF | Ambient heat levels rising (+10) 7586 | -7/DSF | Ambient heat levels rising (+10) 7601 | -7/DSF | Ambient heat levels rising (+10) 7616 | -7/DSF | Ambient heat levels rising (+10) 7625 | -7/DSF | Entered Factory 7625 | -6/Factory | Evolved 2 slots: Power x1, Utility x1 8203 | -6/Factory | Build established: Hacker-Mutant 8221 | -6/Factory | Garrison activated, responded to threat 8341 | -6/Factory | Cargo convoy interrupted 8453 | -6/Factory | Garrison activated, responded to threat 8555 | -6/Factory | Garrison activated, responded to threat 8745 | -6/Factory | Build established: Hacker-Gunner 8804 | -6/Factory | Identified exit to Lower Caves 8804 | -6/Factory | Identified exit to Extension 8921 | -6/Factory | Entered Extension 9235 | -6/Extension | Rescued a captive Derelict 9236 | -6/Extension | Rescued a captive Derelict 9301 | -6/Extension | Rescued a captive Derelict 9368 | -6/Extension | Rescued a captive Derelict 9369 | -6/Extension | Rescued a captive Derelict 9398 | -6/Extension | Rescued A7 9409 | -6/Extension | Build established: Hacker-Tank 9465 | -6/Extension | Rescued a captive Derelict 9489 | -6/Extension | Spotted B-75 Beast 9492 | -6/Extension | Allies destroyed B-75 Beast 9497 | -6/Extension | Spotted B-75 Beast 9504 | -6/Extension | Allies destroyed B-75 Beast 9601 | -6/Extension | Discovered new exit (range 3) 9621 | -6/Extension | Disrupted transfer network 9869 | -6/Extension | Rescued a captive Derelict 9888 | -6/Extension | Rescued a captive Derelict 9889 | -6/Extension | Rescued a captive Derelict 9898 | -6/Extension | Rescued a captive Derelict 9953 | -6/Extension | Rescued a captive Derelict 9954 | -6/Extension | Rescued a captive Derelict 10022 | -6/Extension | Rescued a captive Derelict 10112 | -6/Extension | Discovered new exit (range 10) 10114 | -6/Extension | Discovered new exit (range 6) 10230 | -6/Extension | Entered Cetus 10230 | -6/Cetus | Accompanied by 15 allies (A7) 10235 | -6/Cetus | Acquired a Cetus Manufacturing Module code from A7 10253 | -6/Cetus | Spotted Cetus Guard 10254 | -6/Cetus | Spotted Cetus Guard 10257 | -6/Cetus | Spotted Cetus Guard 10257 | -6/Cetus | Spotted Cetus Guard 10260 | -6/Cetus | Destroyed Cetus Guard 10266 | -6/Cetus | Allies destroyed Cetus Guard 10270 | -6/Cetus | Allies destroyed Cetus Guard 10272 | -6/Cetus | Allies destroyed Cetus Guard 10293 | -6/Cetus | System corruption reached 10% 10442 | -6/Cetus | Started Cetus Manufacturing Module 10451 | -6/Cetus | Murdered A7 10454 | -6/Cetus | Extracted ID and sensor layout for unrecognized location from A7's data core 10467 | -6/Cetus | Manufactured an Enhanced Grunt 10492 | -6/Cetus | Manufactured an Enhanced Grunt 10517 | -6/Cetus | Manufactured an Enhanced Grunt 10542 | -6/Cetus | Manufactured an Enhanced Grunt 10567 | -6/Cetus | Manufactured an Enhanced Grunt 10596 | -6/Cetus | Build established: Scavenger-Tank 10610 | -6/Cetus | Discovered new exit (range 15) 10685 | -6/Cetus | Spotted Cetus Guard 10685 | -6/Cetus | Spotted Cetus Guard 10689 | -6/Cetus | Allies destroyed Cetus Guard 10691 | -6/Cetus | Spotted Cetus Guard 10692 | -6/Cetus | Spotted Cetus Guard 10696 | -6/Cetus | Destroyed Cetus Guard 10702 | -6/Cetus | Allies destroyed Cetus Guard 10707 | -6/Cetus | Allies destroyed Cetus Guard 10725 | -6/Cetus | Discovered new exit (range 15) 10733 | -6/Cetus | Met Revision 17 10863 | -6/Cetus | Entered Archives 10863 | -6/Archives | Accompanied by 13 allies 10891 | -6/Archives | Met Zhirov 10897 | -6/Archives | Reinforcements dispatched to Archives 10899 | -6/Archives | Unable to access archive contents 10920 | -6/Archives | Read partially decrypted archive contents 10923 | -6/Archives | Discovered new exit (range 15) 10942 | -6/Archives | Reinforcements dispatched to Archives 10948 | -6/Archives | Entered Hub_04(d) 11013 | -6/Hub_04(d) | Spotted B-75 Beast 11071 | -6/Hub_04(d) | Destroyed B-75 Beast 11343 | -6/Hub_04(d) | Network Hub disabled 11403 | -6/Hub_04(d) | Discovered new exit (range 10) 11423 | -6/Hub_04(d) | Garrison activated, responded to threat 11458 | -6/Hub_04(d) | Spotted Lightning 11458 | -6/Hub_04(d) | Spotted Lightning 11458 | -6/Hub_04(d) | Spotted Lightning 11477 | -6/Hub_04(d) | Network Hub disabled 11513 | -6/Hub_04(d) | System corruption reached 30% 11514 | -6/Hub_04(d) | Destroyed Lightning 11518 | -6/Hub_04(d) | Destroyed Lightning 11540 | -6/Hub_04(d) | Destroyed Lightning 11566 | -6/Hub_04(d) | Lost 5 parts (1p3u1w) 11566 | -6/Hub_04(d) | Found Prototype Energy Cannon 11583 | -6/Hub_04(d) | Found Prototype Processor 11583 | -6/Hub_04(d) | Identified Exp. Targeting Computer 11586 | -6/Hub_04(d) | Found Prototype Device 11588 | -6/Hub_04(d) | Identified Exp. Phase Shifter 11618 | -6/Hub_04(d) | Found Corrupted Launcher Loader 11649 | -6/Hub_04(d) | Entered Factory 11649 | -5/Factory | Evolved 2 slots: Utility x2 12171 | -5/Factory | Discovered new exit (range 12) 12188 | -5/Factory | Identified exit to Upper Caves 12621 | -5/Factory | Entered Upper Caves 12889 | -5/Upper Caves | Met a Warlord Commander 12890 | -5/Upper Caves | Learned location of Warlord (-5) 12891 | -5/Upper Caves | Warlord Commander delivered Encrypted Comm Array 13563 | -5/Upper Caves | Discovered new exit (range 8) 13573 | -5/Upper Caves | Identified exit to Upper Caves 13610 | -5/Upper Caves | Entered another Upper Caves area 13728 | -5/Upper Caves | Discovered new exit (range 6) 13736 | -5/Upper Caves | Identified exit to Factory 13739 | -5/Upper Caves | Spotted B-75 Beast 14091 | -5/Upper Caves | Discovered new exit (range 8) 14099 | -5/Upper Caves | Identified exit to Warlord 14307 | -5/Upper Caves | Entered Warlord 14384 | -5/Warlord | System corruption cleaned by Quarantine Array 14631 | -5/Warlord | Received a Watcher feed algorithm from an ecstatic Tinkerer 14758 | -5/Warlord | Found Prototype Device 14758 | -5/Warlord | Identified Minesniffer Drone Bay 14879 | -5/Warlord | Met Warlord 14904 | -5/Warlord | Warlord's base attacked by MAIN.C 15004 | -5/Warlord | Ran a Watcher feed algorithm 15057 | -5/Warlord | Found Prototype Energy Gun 15057 | -5/Warlord | Identified Vortex Rail 15061 | -5/Warlord | Found Vortex Rail 15069 | -5/Warlord | Identified EMDS 15254 | -5/Warlord | Warlord forces counterattacked 15367 | -5/Warlord | Spotted Executioner 15373 | -5/Warlord | Destroyed Executioner 15411 | -5/Warlord | Spotted Striker 15411 | -5/Warlord | Spotted Striker 15421 | -5/Warlord | Destroyed Striker 15429 | -5/Warlord | Destroyed Striker 15436 | -5/Warlord | Spotted Executioner 15439 | -5/Warlord | Destroyed Executioner 15463 | -5/Warlord | Destroyed 16 combat bots 15467 | -5/Warlord | Lost 11 allies 15579 | -5/Warlord | Warlord base infiltrated, sounded retreat 15598 | -5/Warlord | P-70 Sage assimilated allied 26-RSG(c) 15714 | -5/Warlord | Spotted Executioner 15738 | -5/Warlord | Spotted Striker 15755 | -5/Warlord | Lost 4 allies 15796 | -5/Warlord | Build established: Scavenger-Gunner 15807 | -5/Warlord | Spotted Striker 15815 | -5/Warlord | Spotted Executioner 15842 | -5/Warlord | Found Prototype Launcher 15850 | -5/Warlord | Discovered new exit (range 12) 15880 | -5/Warlord | Identified exit to Proximity Caves 15882 | -5/Warlord | Entered Proximity Caves 16001 | -4/Proximity Caves | Ran a Watcher feed algorithm 16065 | -4/Proximity Caves | Identified Chain Missile Launcher 16181 | -4/Proximity Caves | Build established: Scavenger-Tank 16312 | -4/Proximity Caves | Discovered exit to Factory (range 15) 16405 | -4/Proximity Caves | Found Alien Artifact 16426 | -4/Proximity Caves | Entered Factory 16426 | -4/Factory | Evolved 2 slots: Propulsion x2 16427 | -4/Factory | Identified exit to Armory 16650 | -4/Factory | Repaired Centrium Heavy Treads 16706 | -4/Factory | Repaired Centrium Heavy Treads 16904 | -4/Factory | Identified exit to DSF 17439 | -4/Factory | Build established: Scavenger-Gunner 17566 | -4/Factory | Identified Dimensional Node Initializer 17981 | -4/Factory | Build established: Hacker-Gunner 18306 | -4/Factory | Destroyed 8 combat bots 18345 | -4/Factory | Lost 17 parts (3p4n7u3w) 18467 | -4/Factory | Build established: Scavenger-Mutant 18830 | -4/Factory | System corruption reached 10% 18915 | -4/Factory | Lost 6 parts (1p2n3w) 19021 | -4/Factory | Core integrity fell below 50% 19039 | -4/Factory | Core integrity fell below 20% 19043 | -4/Factory | Destroyed by Y-72 Warden with Quantum Rifle Last Messages --------------- 19035_ System corrupted: Matter fused (-10). 19035_ Thunder Leg destroyed. 19037_ Imp. VSS Leg destroyed. 19037_ Fission Core destroyed. 19037_ Penetrated by Slug. 19037_ KE Penetrator destroyed. 19038_ Slug penetrates Y-72 Warden. 19038_ Imp. VSS Leg destroyed. 19038_ Penetrated by Slug. 19038_ Slug penetrates Machine. 19039_ >> MONITOR: Recycling Unit F007 accepting Corrupted Structural Scanner (80%). 19040_ Imp. VSS Leg destroyed. 19041_ Slug penetrates Machine. 19041_ Penetrated by Slug. 19042_ >> MONITOR: Recycling Unit F007 accepting Wheel (77%). 19042_ Penetrated by Slug. 19042_ Slug penetrates Wall. [Achievement: I Think I Know What's Going On] Map ----- +----------------------------------------------------+ | # % ##??????????????????????????????????? | | # ##????? ????????????????????????????? | | # #????? ???"???????????????????????? | | #######/#########? ??"""" #???????????????????? | | #? ? ?????????????????????? | | # """??????????????????????? | | # """"???????????????????????? | | + """"???????????????????????? | | # #???????????????????? | | +########## #?? #???????????????????? | | ??????????# #????#########???????????????????? | | ??????????#R #????????????????????????????????? | | ??????????# #????????????????????????????????? | | ??????????# #????????????????????????????????? | | ??????????# #????????????????????????????????? | | ??????????# #????????##??????????????????????? | | ??????????# #????????""""????????????????????? | | ??????????# #???????? ""?????????????????????? | | ??????????# #???????? ??????????????????????? | | ########### #########+######?###?????????????? | | * / T##""""" ? """?????????????? | | " # ##"[[" ? "[?????????????? | | "" / """ # ###"[[ ??????????????? | | "" """ # ^ #?#"[[ """ """ ???????????????? | | "" """ # ^ ^###" "## ##?????????????????? | | "" # #" g"@ #" "???????????? | | "T """ # hg YY +??????????? | | "" """ + h / g Y Y +??????????? | | "" """ # / u g +??????????? | | "" # #" "# #" "#??????????? | | "" ! """ #########""" "## ##? """???????????? | | " """ #???????#"[[ """ ""???[?????????????? | | """ #???????#"[[ ????????????????? | | #???????#"[[" ???????????????? | | ??? ] #???????#""""" g ""??????????????? | | ????######????????#######+#####+###??????????????? | | ????????????????????????? ???? ????????????????? | | ????????????????????????? ""????" ???????????????? | | ??????????????????????????"??????"???????????????? | | ?????????????????????????????????????????????????? | | ?????????????????????????????????????????????????? | | ?????????????????????????????????????????????????? | | ?????????????????????????????????????????????????? | | ?????????????????????????????????????????????????? | | ?????????????????????????????????????????????????? | | ?????????????????????????????????????????????????? | | ?????????????????????????????????????????????????? | | ?????????????????????????????????????????????????? | | ?????????????????????????????????????????????????? | | ?????????????????????????????????????????????????? | +----------------------------------------------------+ Best States ------------- Heat Dissipation 92 Coolant Potential 65 Energy Generation 45 Energy Capacity 600 Matter Stores 300 Matter Capacity 300 Sight Range 22 Robot Scan Range 16 Terrain Scan Density 85 Jamming Range 16 Armor Coverage 1200 Resistance: TH 15 Weapon Cycling 20 Phase Shifting 20 Evasion (%) 71 Targeting Accuracy 12 Target Analysis 6 Armor Integrity Analysis 40 Recoil Reduction 6 Particle Charging 15 Offensive Hacking 14 Defensive Hacking 24 Item Schematics ----------------- Particle Charger | -8/Materials | Scanalyzed Prc. Rocket Launcher | -8/Materials | Scanalyzed Huge Storage Unit | -6/Factory | Hacked Prc. Grenade Launcher | -6/Extension | Hacked Robot Schematics ------------------ None Fabricated ------------ Nothing Repaired ---------- Seismic Detector | 15% | -9/Storage Centrium Heavy Treads | 23% | -4/Factory Centrium Heavy Treads | 60% | -4/Factory Alien Tech Used ----------------- None Achievements -------------- I Think I Know What's Going On Revising The Future Sniper Challenges ------------ None Game ------ Seed UtilityMetafieldMediator Manual? 0 Play Time 04:05:08 Cumulative 105.2 hours Start 2025.06.10 @ 02:05:53 End 2025.06.14 @ 22:31:36 Sessions 5 Manual Loads 0 Difficulty Rogue Special Mode None Game No. 64 Rogue 64 Adventurer 0 Explorer 0 Win Type - Total 0 Types 0/0/0/0/0/0/0/0/0/0 Lore% 50 Gallery% 51 Achievement% 46 Wizard Run 0 Options --------- Layout 2 ASCII 0 Keyboard 0 Movement Numpad Keybinds 0 Fullscreen 0 Font 24/Proggy Map View 59x48 Zoom Use 0% Tactical HUD 1 Map Filters NONE Filters NONE Steam 1 RUN: 86cee2bd-527e-4f5f-9d91-1d506fd516b8